[Event "87th Spanish Championship 2022"]
[Site "Linares"]
[Date "2022.08.13"]
[Round "3.36"]
[White "Garrido Diaz, Jose Antonio"]
[Black "Garcia Escoda, Marc"]
[Result "1-0"]
[ECO "B38"]
[WhiteElo "2306"]
[BlackElo "2130"]
[Annotator "TA"]
[PlyCount "53"]
[EventDate "2022.08.11"]
[EventType "swiss"]
[EventCountry "ESP"]
[SourceTitle "playchess.com"]
[Source "ChessBase"]
[SourceQuality "1"]
[TimeControl "5400+30"]

{[%evp 20,53,50,52,81,0,0,0,78,83,68,27,88,87,175,123,209,216,217,204,238,210,197,208,208,201,217,139,532,547,641,632,569,369,1396,1383]} 1. e4 {[%emt 0:00:03]} c5 {[%emt 0:00:08]} 2. Nf3 {[%emt 0:00:05]} g6 {[%emt 0:00:09]} 3. c4 {[%emt 0:01:24]} Nc6 {[%emt 0:00:51]} 4. d4 {[%emt 0:00:17]} cxd4 {[%emt 0:00:06]} 5. Nxd4 {[%emt 0:00:03]} Bg7 {[%emt 0:00:04]} 6. Be3 {[%emt 0:00:04]} Nf6 {[%emt 0:00:07]} 7. Nc3 {[%emt 0:00:04]} O-O {[%emt 0:00:15]} 8. Be2 {[%emt 0:00:29]} d6 {[%emt 0:00:12]} 9. O-O {[%emt 0:01:10]} Bd7 {[%emt 0:00:16]} 10. h3 {[%emt 0:00:05]} Rc8 {[%emt 0:00:16]} 11. Rc1 {[%emt 0:13:02]} a6 {[%emt 0:04:02] B38: Sicilian: Maroczy Bind with 5...Bg7 and 7...0-0.} 12. a3 {[%emt 0:17:35] White is more active.} (12. Nf3 $16) 12... Nxd4 $1 $11 {[%emt 0:12:19]} 13. Bxd4 {[%emt 0:00:07] [#]} b5 $146 {[%emt 0:00:51]} (13... Bh6 $11) ({Predecessor:} 13... Bc6 14. Bg4 Nxg4 15. hxg4 Qd7 16. Bxg7 Kxg7 17. Qd4+ Kg8 18. f3 b5 19. cxb5 Bxb5 {1-0 (44) Benet Morant,D (2082)-Paevskiy,I (1969) Gold Coast 2019}) 14. cxb5 $16 {[%emt 0:00:56]} axb5 {[%emt 0:00:08]} 15. Nxb5 {[%emt 0:10:07]} Bxb5 {[%emt 0:21:48]} (15... Rxc1 $11 {keeps the balance.} 16. Qxc1 Nxe4 17. Bxg7 Kxg7) 16. Bxb5 {[%emt 0:03:05]} e5 {[%emt 0:00:07]} (16... Nxe4 $16 17. Rxc8 Qxc8) 17. Be3 {[%emt 0:07:30]} (17. Rxc8 $18 Qxc8 18. Be3) 17... Nxe4 {[%emt 0:02:59]} (17... Rxc1 $16 {was worth a try.} 18. Qxc1 Nxe4) 18. Rxc8 $18 {[%emt 0:02:09]} Qxc8 {[%emt 0:00:03]} 19. Qd5 {[%emt 0:01:30] Against Qb7} Qb8 {[%emt 0:01:26]} 20. a4 {[%emt 0:00:42][%cal Ba3a4,Ba4a5][%mdl 32]} Nf6 {[%emt 0:01:33] [#]} 21. Qc6 {[%emt 0:03:31] Rc1 is the strong threat.} d5 {[%emt 0:02:29]} 22. Bc5 {[%emt 0:02:12]} Rd8 {[%emt 0:13:20]} 23. Bb6 {[%emt 0:07:59] A strong pair of Bishops.} Rd7 {[%emt 0:20:32][%mdl 8192] This costs Black the game.} (23... Rc8 $16 24. Ba7 Qa8 25. Qxa8 Rxa8) 24. Rc1 {[%emt 0:01:37] Strongly threatening Qc8+.} Bf8 {[%emt 0:00:14] [#] White must now prevent ...Rd6.} 25. a5 {[%emt 0:05:08]} Kg7 {[%emt 0:04:42]} 26. Qc8 {[%emt 0:03:13]} Qd6 {[%emt 0:03:23]} (26... Rb7 27. Qxb8 Rxb8) 27. Bc5 {[%emt 0:02:03] Weighted Error Value: White=0.35/Black=0.71} 1-0

[Event "87th Spanish Championship 2022"]
[Site "Linares"]
[Date "2022.08.13"]
[Round "4.1"]
[White "Santos Latasa, Jaime"]
[Black "Gines Esteo, Pedro Antonio"]
[Result "1-0"]
[ECO "C50"]
[WhiteElo "2675"]
[BlackElo "2455"]
[Annotator "TA"]
[PlyCount "99"]
[EventDate "2022.08.11"]
[EventType "swiss"]
[EventCountry "ESP"]
[SourceTitle "playchess.com"]
[Source "ChessBase"]
[SourceQuality "1"]
[TimeControl "5400+30"]

{[%evp 10,99,21,13,23,2,9,12,10,0,17,0,8,9,29,21,23,12,41,38,40,13,9,17,28,31,25,0,23,32,29,22,25,25,49,52,55,48,43,41,72,80,75,61,58,60,53,46,69,31,49,27,43,39,55,31,76,52,107,77,102,104,158,106,106,102,146,147,263,263,270,270,270,270,291,291,416,390,766,765,747,711,827,783,750,730,1167,1230,1167,1051,664,543]} 1. e4 {[%emt 0:00:02]} e5 {[%emt 0:02:08]} 2. Nf3 {[%emt 0:00:01]} Nc6 {[%emt 0:00:07]} 3. Bc4 {[%emt 0:00:10]} Nf6 {[%emt 0:00:46]} 4. d3 {[%emt 0:00:37]} Bc5 {[%emt 0:00:13]} 5. O-O {[%emt 0:00:08]} d6 {[%emt 0:01:37]} 6. c3 {[%emt 0:00:24]} a5 {[%emt 0:01:52] C54: Giuoco Piano: 4 c3 Nf6, main lines with 5 d4 and 5 d3.} 7. Re1 {[%emt 0:00:14]} O-O {[%emt 0:01:09]} 8. h3 {[%emt 0:00:07]} h6 {[%emt 0:00:21] The position is equal.} 9. a4 {[%emt 0:00:40]} Ba7 {[%emt 0:09:40]} 10. Bb3 $5 {[%emt 0:02:26][%cal Bc4b3,Bb3c2,Bc2d3][%mdl 4] Leaves trodden paths.} Be6 {[%emt 0:05:01]} 11. Bc2 {[%emt 0:05:10]} Ne7 {[%emt 0:00:41] [#]} 12. d4 $146 {[%emt 0:00:49]} ({Predecessor:} 12. Nbd2 Ng6 13. Nf1 c6 14. Be3 Bxe3 15. Nxe3 Qc7 16. d4 Rad8 17. Nf5 Rfe8 18. g3 {½-½ (38) Kumar,N (2158)-Eckert,D (2151) Charlotte 2021}) 12... Ng6 {[%emt 0:00:38]} 13. Be3 {[%emt 0:02:37]} c6 {[%emt 0:06:45]} 14. Nbd2 {[%emt 0:00:24]} Nh5 {[%emt 0:04:40]} 15. Bd3 {[%emt 0:07:09]} Nhf4 {[%emt 0:06:23]} 16. Bf1 {[%emt 0:00:29]} Bb8 {[%emt 0:06:15]} 17. dxe5 {[%emt 0:12:17]} dxe5 {[%emt 0:00:54]} 18. Qc2 {[%emt 0:02:35] Inhibits Nd3.} Nh4 {[%emt 0:03:03]} 19. Nxh4 {[%emt 0:00:40]} Qxh4 {[%emt 0:00:02]} 20. Kh2 {[%emt 0:00:43]} Qh5 {[%emt 0:02:38]} 21. Qd1 {[%emt 0:01:01]} Bc7 {[%emt 0:14:19]} 22. g3 {[%emt 0:03:05]} Qxd1 {[%emt 0:00:39]} 23. Rexd1 {[%emt 0:00:38]} Nh5 {[%emt 0:01:10]} 24. Bc4 {[%emt 0:01:07]} Bxc4 {[%emt 0:01:06]} 25. Nxc4 {[%emt 0:00:26]} Nf6 {[%emt 0:00:06]} 26. f3 {[%emt 0:00:19]} (26. Bc5 $5 {[%cal Rc5f8]}) 26... b5 $1 {[%emt 0:06:36]} 27. Na3 {[%emt 0:04:22]} Rfb8 {[%emt 0:01:16]} 28. Kg2 {[%emt 0:02:54]} Kf8 {[%emt 0:08:16]} 29. axb5 {[%emt 0:06:25]} (29. Bc5+ {feels hotter.} Ke8 30. Rd3 Rb7 31. Rad1) 29... cxb5 {[%emt 0:00:17]} 30. c4 $36 {[%emt 0:00:15][%mdl 2048] White has the initiative.} bxc4 {[%emt 0:03:19]} 31. Nxc4 {[%emt 0:00:15]} Ke8 {[%emt 0:01:32]} 32. Bd2 {[%emt 0:01:13]} (32. Bc5 {is more complex.} Ra6 33. Ba3 Rc6 34. Rdc1) 32... Ra6 {[%emt 0:05:50]} 33. Bc3 {[%emt 0:00:41]} Rc6 {[%emt 0:03:04]} (33... Rb5 $14) 34. Ra4 {[%emt 0:02:47]} Rc5 {[%emt 0:00:21]} 35. Rda1 {[%emt 0:01:14] White is more active.} g5 {[%emt 0:04:05]} (35... Nd7 $142) 36. g4 {[%emt 0:01:01]} (36. Nxa5 $142 Nd7 37. Rc4) 36... Nd7 {[%emt 0:00:49]} 37. Nxa5 {[%emt 0:02:00]} Nf8 {[%emt 0:00:06]} 38. Rc4 {[%emt 0:01:31]} Rxa5 {[%emt 0:01:14]} (38... Ne6 $16 {might work better.} 39. Rxc5 Nxc5) 39. Bxa5 $18 {[%emt 0:00:11]} Rxb2+ {[%emt 0:00:04]} 40. Kf1 {[%emt 0:00:10]} Bxa5 {[%emt 0:00:54]} 41. Rxa5 {[%emt 0:00:11][%mdl 4096] Endgame Black must now prevent Rc7. KRR-KRN} Ne6 {[%emt 0:00:12] Against Rc7} 42. Rxe5 {[%emt 0:01:10]} Rh2 {[%emt 0:00:50]} (42... Kf8 $142 43. Rf5 Kg7) 43. Rf5 {[%emt 0:05:05]} Nf4 $2 {[%emt 0:00:28] [#]} (43... Rb2 44. Ra4 Rb7) 44. Rc8+ {[%emt 0:00:37] White is clearly winning.} Kd7 {[%emt 0:00:06]} 45. Rf8 {[%emt 0:00:24]} Rxh3 {[%emt 0:00:55]} 46. R8xf7+ {[%emt 0:00:09]} Ke6 {[%emt 0:00:10]} 47. R7f6+ {[%emt 0:00:07]} Ke7 {[%emt 0:00:07]} 48. Rxf4 {[%emt 0:00:14]} gxf4 {[%emt 0:00:01]} 49. Rxf4 {[%emt 0:00:09] [#] White threatens Kg2 and mate.} Rh2 {[%emt 0:00:03]} 50. Rf5 {[%emt 0:00:21] Weighted Error Value: White=0.09 (flawless) /Black=0.21 (precise)} 1-0

[Event "87th Spanish Championship 2022"]
[Site "Linares"]
[Date "2022.08.13"]
[Round "4.2"]
[White "Lopez Martinez, Josep Manuel"]
[Black "Iturrizaga Bonelli, Eduardo"]
[Result "0-1"]
[ECO "E11"]
[WhiteElo "2486"]
[BlackElo "2619"]
[Annotator "TA"]
[PlyCount "92"]
[EventDate "2022.08.11"]
[EventType "swiss"]
[EventCountry "ESP"]
[SourceTitle "playchess.com"]
[Source "ChessBase"]
[SourceQuality "1"]
[TimeControl "5400+30"]

{[%evp 17,92,27,31,-33,-38,-77,-63,-72,-58,-82,-81,-86,-85,-96,-62,-93,-98,-105,-81,-84,-92,-94,-68,-179,-106,-107,-115,-122,-115,-91,-109,-157,-119,-126,-126,-126,-117,-169,-166,-178,-184,-173,-165,-163,-122,-144,-141,-136,-122,-233,-244,-275,-261,-403,-393,-479,-468,-595,-587,-639,-561,-595,-529,-520,-522,-516,-510,-1060,-1041,-1008,-813,-960,-960,-1253,-1396,-2514,-1013]} 1. d4 Nf6 {[%emt 0:01:27]} 2. c4 {[%emt 0:00:58]} e6 {[%emt 0:00:19]} 3. Nf3 {[%emt 0:00:48]} Bb4+ {[%emt 0:02:40]} 4. Bd2 {[%emt 0:01:57]} a5 {[%emt 0:00:24]} 5. g3 {[%emt 0:04:16]} O-O {[%emt 0:00:48]} 6. Bg2 {[%emt 0:03:49]} d5 {[%emt 0:00:04]} 7. O-O {[%emt 0:13:08]} Be7 {[%emt 0:00:18]} 8. Bf4 {[%emt 0:11:15]} Nbd7 {[%emt 0:01:12]} 9. Qc2 {[%emt 0:00:50]} c6 {[%emt 0:00:16]} 10. Nc3 {[%emt 0:02:40] E08: Closed Catalan: Main Line: 7 Qc2.} (10. Rd1 $14) 10... dxc4 $15 {[%emt 0:00:40]} 11. e4 {[%emt 0:01:51] Prevents Nd5.} b5 {[%emt 0:01:36]} 12. Rad1 {[%emt 0:01:13] Black is slightly better.} Bb7 {[%emt 0:02:13]} 13. Rfe1 {[%emt 0:00:18]} Re8 {[%emt 0:06:25]} 14. h3 {[%emt 0:02:14]} a4 {[%emt 0:03:00]} 15. a3 {[%emt 0:00:24] [#]} Qa5 $146 {[%emt 0:05:10]} ({Predecessor:} 15... Qb6 16. g4 Rad8 17. g5 Nh5 18. Bh2 Nf8 19. Qe2 Ng6 20. Qe3 {½-½ (19) Enchev,I (2491)-Salimova,N (2372) Primorsko 2020}) 16. g4 {[%emt 0:03:57]} Rad8 {[%emt 0:07:32]} 17. Bd2 {[%emt 0:04:36] [#] aiming for e5.} Qb6 {[%emt 0:10:13]} 18. g5 {[%emt 0:06:51]} Nh5 {[%emt 0:00:11][%cal Bf6h5,Bh5f4,Bf4d3][%mdl 32]} 19. Be3 {[%emt 0:00:19]} c5 {[%emt 0:03:35]} 20. d5 {[%emt 0:07:54]} (20. Rd2 $15) 20... e5 {[%emt 0:06:07]} (20... Nf8 $19 21. Ne5 Bd6) 21. Ne2 {[%emt 0:02:07]} Bd6 {[%emt 0:00:58]} 22. Ng3 {[%emt 0:04:28]} Nf4 {[%emt 0:06:08]} 23. Nf5 {[%emt 0:00:31]} Nd3 {[%emt 0:04:20]} 24. Re2 {[%emt 0:04:24]} (24. Rxd3 $142 cxd3 25. Qxd3) 24... Ba6 {[%emt 0:02:25]} 25. Red2 {[%emt 0:01:28]} Bf8 {[%emt 0:02:36]} 26. Bf1 {[%emt 0:00:26]} Nf4 {[%emt 0:00:39]} 27. Kh2 {[%emt 0:03:21]} (27. Qc3 $17) 27... g6 $19 {[%emt 0:00:53]} 28. Nh6+ {[%emt 0:01:35]} Bxh6 {[%emt 0:00:06]} 29. gxh6 {[%emt 0:00:04]} Qd6 {[%emt 0:02:34]} 30. Re1 {[%emt 0:10:29]} Nh5 {[%emt 0:00:31] Pair of Knights!} 31. Kh1 {[%emt 0:01:17]} Rb8 {[%emt 0:00:21]} 32. Ng5 {[%emt 0:00:30]} Bc8 {[%emt 0:02:28]} 33. Be2 {[%emt 0:03:13]} (33. Qc3 $17) 33... Nf4 {[%emt 0:00:49]} 34. Rg1 {[%emt 0:00:37]} Qf8 {[%emt 0:01:45]} 35. Bxf4 {[%emt 0:02:54]} (35. Kh2 {was worth a try.}) 35... exf4 {[%emt 0:00:05]} 36. d6 {[%emt 0:00:16]} Ne5 {[%emt 0:03:16] Black is clearly winning.} 37. Rd5 {[%emt 0:00:27]} Qxh6 {[%emt 0:01:16]} 38. Qc3 {[%emt 0:00:23]} f6 {[%emt 0:00:20]} 39. Bf1 {[%emt 0:01:38]} fxg5 {[%emt 0:01:04]} 40. Rxe5 {[%emt 0:00:02]} Rxe5 {[%emt 0:00:09]} 41. Qxe5 {[%emt 0:00:01] [#] Strongly threatening d7.} Bxh3 {[%emt 0:00:06][%cal Rh3f1]} 42. Rxg5 {[%emt 0:01:27]} (42. Rg2 $142 Bxg2+ 43. Kxg2) 42... Bf5+ {[%emt 0:01:52]} 43. Bh3 {[%emt 0:00:08]} Qxh3+ {[%emt 0:00:13]} 44. Kg1 {[%emt 0:00:09]} Bd7 {[%emt 0:00:28] ...b4 is the strong threat.} 45. Qxc5 {[%emt 0:01:15]} Re8 {[%emt 0:00:29]} 46. e5 {[%emt 0:00:27]} Qe6 {[%emt 0:00:46] Weighted Error Value: White=0.62/Black=0.10 (very precise)} 0-1

[Event "87th Spanish Championship 2022"]
[Site "Linares"]
[Date "2022.08.13"]
[Round "4.3"]
[White "Silva Lucena, Cristian"]
[Black "Yuffa, Daniil"]
[Result "1/2-1/2"]
[ECO "B12"]
[WhiteElo "2212"]
[BlackElo "2603"]
[Annotator "TA"]
[PlyCount "101"]
[EventDate "2022.08.11"]
[EventType "swiss"]
[EventCountry "ESP"]
[SourceTitle "playchess.com"]
[Source "ChessBase"]
[SourceQuality "1"]
[TimeControl "5400+30"]

{[%evp 9,101,25,25,0,21,0,27,14,9,0,0,0,3,6,28,-28,-14,-67,-71,-68,41,39,18,33,33,-12,-22,-59,-53,-57,-30,-34,-31,-33,-43,-44,-9,-18,-18,-24,-16,-75,-81,-62,-8,-7,0,0,0,-29,-21,-30,0,-57,0,-8,0,-60,0,-18,-17,-25,0,0,0,0,0,-16,6,-35,-18,-80,-93,-95,-44,-83,-45,-78,0,0,0,-146,-138,-207,0,0,0,0,0,0,0,0,0,0]} 1. e4 c6 {[%emt 0:03:21]} 2. d4 {[%emt 0:00:11]} d5 {[%emt 0:00:06]} 3. e5 {[%emt 0:00:05]} c5 {[%emt 0:00:06]} 4. dxc5 {[%emt 0:00:05]} e6 {[%emt 0:00:03]} 5. a3 {[%emt 0:00:07]} Bxc5 {[%emt 0:00:13]} 6. b4 {[%emt 0:00:04] B12: Caro-Kann: Advance Variation.} Bb6 {[%emt 0:00:06]} 7. Bb2 {[%emt 0:00:18]} (7. Qg4 $5 {[%cal Rg4g7]} Kf8 8. Nf3 $11) 7... Ne7 {[%emt 0:04:12]} 8. Nf3 {[%emt 0:00:32] White has an edge.} a5 {[%emt 0:02:48] 8...0-0 deserves study.} 9. b5 {[%emt 0:01:05]} Nd7 {[%emt 0:01:03][%cal Bb8d7,Bd7c5,Bc5e4][%mdl 32]} 10. Bd3 {[%emt 0:01:13]} a4 {[%emt 0:06:35]} 11. O-O {[%emt 0:01:37]} Nc5 {[%emt 0:00:16]} 12. Re1 {[%emt 0:00:54] [#]} (12. c4 $142 $1) 12... Bd7 $146 {[%emt 0:02:24]} ({Predecessor:} 12... Nxd3 13. Qxd3 Bd7 14. Nbd2 O-O 15. Bd4 Nf5 16. Bxb6 Qxb6 17. Rab1 Rfd8 18. c4 Be8 {0-1 (34) Li,H (2310)-Hoefelsauer,T (2390) Graz 2020}) 13. Bf1 {[%emt 0:05:27]} (13. c4 $11) 13... Ne4 $36 {[%emt 0:04:53][%mdl 2048] Black is in control.} 14. Nd4 {[%emt 0:04:37]} h5 {[%emt 0:20:36]} ({Black should play} 14... Qc7 $15) 15. Nd2 $14 {[%emt 0:06:56]} Nxd2 {[%emt 0:02:03]} 16. Qxd2 {[%emt 0:00:18]} Rc8 {[%emt 0:01:25]} 17. Qg5 {[%emt 0:04:34]} Ng6 {[%emt 0:02:45]} 18. Qxd8+ {[%emt 0:00:53]} (18. Qc1 {looks sharper.} Qh4 19. g3 Qe7 20. Nf3) 18... Bxd8 {[%emt 0:00:26]} 19. g3 {[%emt 0:00:33]} Bc7 {[%emt 0:06:30]} (19... Ba5 $5 {[%cal Ra5e1]}) 20. f4 {[%emt 0:03:43]} Bb6 {[%emt 0:00:05]} 21. Bd3 {[%emt 0:00:11]} Ne7 {[%emt 0:00:19]} 22. Kg2 {[%emt 0:01:30]} Rc7 {[%emt 0:01:03]} 23. Rab1 {[%emt 0:01:21]} O-O {[%emt 0:02:59]} 24. h3 {[%emt 0:03:18]} Ba5 {[%emt 0:02:14]} 25. Rh1 {[%emt 0:01:52]} (25. Rf1 $11) 25... Nc8 $17 {[%emt 0:03:20]} 26. g4 {[%emt 0:05:00]} h4 {[%emt 0:00:03]} (26... Nb6 $15) 27. Nf3 $11 {[%emt 0:02:08]} Nb6 {[%emt 0:00:05]} 28. Nxh4 {[%emt 0:01:39]} Nc4 {[%emt 0:01:55]} 29. Nf3 {[%emt 0:01:37]} Bxb5 {[%emt 0:05:32]} (29... Ne3+ {keeps more tension.} 30. Kf2 Nxc2 31. Ke2 Bb6) 30. Bc1 {[%emt 0:01:14]} Ba6 {[%emt 0:01:23]} 31. g5 {[%emt 0:00:33]} (31. h4 $11) 31... Nb6 {[%emt 0:07:08]} (31... Bc3 $15) 32. Be3 {[%emt 0:01:26]} Nc4 {[%emt 0:00:39]} (32... Nd7 $11) 33. Bc1 $1 $15 {[%emt 0:00:06]} Nb6 {[%emt 0:00:10]} 34. Be3 {[%emt 0:00:06]} Nd7 {[%emt 0:02:26]} 35. g6 {[%emt 0:00:57]} Bxd3 {[%emt 0:02:25]} 36. gxf7+ {[%emt 0:00:33]} Kxf7 {[%emt 0:00:34]} 37. cxd3 {[%emt 0:00:27]} b6 {[%emt 0:00:40]} 38. Kg3 {[%emt 0:02:58]} Ke7 {[%emt 0:02:56]} 39. Nh4 {[%emt 0:02:14] [#] Hoping for Ng6+.} Rfc8 {[%emt 0:01:15] ...Rc3 is the strong threat.} 40. Bd4 {[%emt 0:00:09] Against Rc3} (40. f5 $1 $11) 40... Nc5 $17 {[%emt 0:01:51]} 41. f5 {[%emt 0:01:11]} Nb3 {[%emt 0:01:10]} (41... Nxd3 $17 42. Ng6+ Kf7) 42. Be3 $15 {[%emt 0:00:39]} Rc3 {[%emt 0:01:30]} 43. Rhd1 {[%emt 0:01:18]} Nc5 {[%emt 0:02:34]} ({Black should try} 43... d4 $17 44. Bf2 Rc2) 44. Ng6+ {[%emt 0:00:17]} Kf7 {[%emt 0:00:13]} 45. Nf4 {[%emt 0:00:02]} (45. Bxc5 $11 R8xc5 46. Kg4) 45... exf5 $17 {[%emt 0:00:40] aiming for ...g5.} 46. Nxd5 {[%emt 0:00:57]} (46. Bxc5 $17 {keeps fighting.} R8xc5 47. Kh4 (47. e6+ Ke8 $19)) 46... Rxd3 $2 {[%emt 0:01:05] [#]} (46... Rxa3 $19 {White must now prevent ...g5.} 47. Bxc5 Rxc5 48. Nxb6 g5) 47. e6+ $1 $11 {[%emt 0:00:05] The position is equal.} Ke8 $1 {[%emt 0:00:46][%cal Oa5d2] And now ...Bd2! would win.} 48. Rxd3 {[%emt 0:01:23]} Nxd3 {[%emt 0:00:03]} 49. Bxb6 {[%emt 0:00:24]} Rb8 $1 {[%emt 0:02:25]} 50. Rb5 {[%emt 0:01:27]} Bxb6 {[%emt 0:00:11]} 51. Rxb6 {[%emt 0:00:25] Weighted Error Value: White=0.20 (precise) /Black=0.25 (precise)} 1/2-1/2

[Event "87th Spanish Championship 2022"]
[Site "Linares"]
[Date "2022.08.13"]
[Round "4.4"]
[White "Salgado Lopez, Ivan"]
[Black "Espinosa Aranda, Angel"]
[Result "1/2-1/2"]
[ECO "B40"]
[WhiteElo "2604"]
[BlackElo "2439"]
[Annotator "TA"]
[PlyCount "73"]
[EventDate "2022.08.11"]
[EventType "swiss"]
[EventCountry "ESP"]
[SourceTitle "playchess.com"]
[Source "ChessBase"]
[SourceQuality "1"]
[TimeControl "5400+30"]

{[%evp 13,73,0,0,6,0,4,18,-3,9,0,13,27,56,0,1,-14,0,-13,0,-4,0,-19,-16,-15,0,0,0,0,0,0,0,0,0,0,0,0,0,0,0,0,0,0,2,11,13,-7,4,0,38,8,8,8,8,8,8,8,8,8,8,0,8,0]} 1. e4 {[%emt 0:00:03]} c5 {[%emt 0:04:02]} 2. Nf3 {[%emt 0:00:40]} e6 {[%emt 0:00:24]} 3. c3 {[%emt 0:03:19]} Nf6 {[%emt 0:02:45]} 4. e5 {[%emt 0:00:24]} Nd5 {[%emt 0:00:06]} 5. Bc4 {[%emt 0:00:21]} d6 {[%emt 0:01:47]} 6. d4 {[%emt 0:01:00]} cxd4 {[%emt 0:00:30]} 7. cxd4 {[%emt 0:00:09]} Be7 {[%emt 0:00:20]} 8. O-O {[%emt 0:00:16] B22: Sicilian: 2 c3.} O-O {[%emt 0:00:08]} 9. Qe2 {[%emt 0:00:09]} Bd7 {[%emt 0:00:46]} 10. exd6 {[%emt 0:11:34]} Bxd6 {[%emt 0:00:32]} 11. Nc3 {[%emt 0:02:15]} Nxc3 {[%emt 0:02:26]} 12. bxc3 {[%emt 0:00:14]} Bc6 {[%emt 0:00:07] [#]} 13. Bd3 $146 {[%emt 0:04:05]} (13. Ng5 $14) ({Predecessor:} 13. Ne5 Bxe5 14. Qxe5 Nd7 15. Qg3 Nf6 16. Re1 Ne4 17. Qd3 Qa5 18. Bb2 Nd6 19. Re5 {1-0 (28) Tari,A (2654)-Shankland,S (2718) chess24.com INT 2022}) 13... Nd7 $11 {[%emt 0:02:11]} 14. Re1 {[%emt 0:02:21]} Rc8 {[%emt 0:10:32]} 15. Rb1 {[%emt 0:08:16]} Qa5 {[%emt 0:07:06]} 16. c4 {[%emt 0:07:05]} Qh5 {[%emt 0:12:21]} 17. Be3 {[%emt 0:07:30]} b6 {[%emt 0:04:38]} 18. h3 {[%emt 0:00:20]} Bxf3 {[%emt 0:04:34]} 19. Qxf3 {[%emt 0:00:14]} Qxf3 {[%emt 0:00:23]} 20. gxf3 {[%emt 0:00:07]} Rfd8 {[%emt 0:01:46]} 21. f4 {[%emt 0:03:32]} g6 {[%emt 0:00:40]} 22. Red1 {[%emt 0:03:10]} Be7 {[%emt 0:02:41]} 23. Be2 {[%emt 0:06:15]} Kg7 {[%emt 0:05:47]} 24. a4 {[%emt 0:00:51]} Nf6 {[%emt 0:04:14][%cal Bd7f6,Bf6e8,Be8c7][%mdl 32]} 25. Bd3 {[%emt 0:08:18]} Ne8 {[%emt 0:01:00]} 26. a5 {[%emt 0:00:34]} bxa5 {[%emt 0:09:06]} 27. c5 $1 {[%emt 0:01:02]} Nc7 {[%emt 0:01:46]} 28. Ra1 {[%emt 0:04:20]} Bf6 {[%emt 0:02:28]} 29. Bc4 {[%emt 0:02:54]} Nd5 {[%emt 0:03:30]} 30. Rxa5 {[%emt 0:00:55]} Rc7 {[%emt 0:02:11]} 31. Rda1 {[%emt 0:02:38]} Nxe3 {[%emt 0:05:53] The position is equal.} 32. fxe3 {[%emt 0:00:23]} Rxd4 $1 {[%emt 0:00:04]} 33. exd4 {[%emt 0:00:11]} Bxd4+ {[%emt 0:00:03]} 34. Kg2 {[%emt 0:01:29] [#] And now Rc1 would win.} Bxa1 {[%emt 0:00:04]} 35. Rxa1 {[%emt 0:00:06] Strongly threatening Ra5.} Rxc5 {[%emt 0:00:03]} 36. Bd3 {[%emt 0:00:47]} a5 {[%emt 0:00:17]} 37. Ra4 {[%emt 0:00:19] Weighted Error Value: White=0.10 (very precise) /Black=0.06 (flawless)} 1/2-1/2